bitfinex-derivatives/quotes_SOLF0:USTF0_20250705
["timestamp","ask_amount","ask_price","bid_price","bid_amount"]
[1751715335082,4.28729016,148.38,148.37,2.32484987]
[1751715337082,9.91110066,148.38,148.37,2.32484987]
[1751715337285,9.91110066,148.38,148.37,9.06254987]
[1751715339582,4.28729016,148.38,148.37,9.06254987]
[1751715342981,4.28729016,148.38,148.37,6.7377]
[1751715343182,9.91542143,148.38,148.37,9.06254987]
[1751715347487,9.91542143,148.38,148.37,2.32484987]
[1751715348480,14.40885668,148.38,148.37,2.32484987]
[1751715352191,14.40885668,148.38,148.37,9.06254987]
[1751715352485,14.40885668,148.38,148.37,9.06118869]
[1751715352991,9.91542143,148.38,148.37,9.06118869]
[1751715356994,9.91542143,148.38,148.37,9.06082041]
[1751715358492,9.92548453,148.38,148.37,9.06082041]
[1751715360886,9.92548453,148.38,148.37,54.62082041]
[1751715364298,9.93112896,148.38,148.37,52.2977]
[1751715364499,9.93112896,148.38,148.37,45.56]
[1751715364804,14.43608204,148.38,148.37,47.88312041]
[1751715365099,21.17328204,148.38,148.37,47.88312041]
[1751715365596,21.17328204,148.38,148.37,2.32312041]
[1751715370704,6.7381,148.37,148.35,45.56]
[1751715370905,10.12861294,148.36,148.35,45.56]
[1751715371096,10.12861294,148.36,148.35,47.88312041]
[1751715371604,5.6438388,148.36,148.35,47.88312041]
[1751715373404,5.62953303,148.36,148.35,47.88312041]
[1751715374097,5.62953303,148.36,148.35,54.62172041]
[1751715375504,5.62953303,148.36,148.35,47.88312041]
[1751715376197,5.62953303,148.36,148.35,45.56]
[1751715376399,5.62953303,148.36,148.35,47.88312041]
[1751715381416,5.62953303,148.36,148.35,54.62172041]
[1751715381604,6.7379,148.37,148.35,54.62172041]
[1751715381901,6.7379,148.37,148.36,2.32312041]
[1751715382101,12.34701582,148.37,148.36,2.32312041]
[1751715384713,5.60911582,148.37,148.36,9.06122041]
[1751715386408,4.28729016,148.38,148.37,6.7377]
[1751715386707,4.28729016,148.38,148.37,9.06082041]
[1751715389715,4.28729016,148.38,148.37,2.32312041]
[1751715394219,4.28729016,148.38,148.37,9.06082041]
[1751715407925,4.28729016,148.38,148.37,6.7377]
[1751715408125,4.28729016,148.38,148.37,9.06082041]
[1751715409829,4.28729016,148.38,148.37,54.60082041]
[1751715419435,4.28729016,148.38,148.37,9.06082041]
[1751715428245,9.86445225,148.38,148.37,9.06082041]
[1751715431047,9.86445225,148.38,148.37,9.06070186]
[1751715438253,6.2999469,148.42,148.4,6.7363]
[1751715438549,6.7352,148.43,148.4,9.05930186]
[1751715438550,11.39932436,148.41,148.4,9.05930186]
[1751715438857,11.39932436,148.41,148.4,9.0584167]
[1751715439053,4.52200925,148.41,148.4,9.0584167]
[1751715441457,6.2999469,148.44,148.4,9.0584167]
[1751715441659,18.14061825,148.43,148.42,2.3221167]
[1751715448066,18.16850369,148.43,148.42,2.3221167]
[1751715449369,6.7354,148.42,148.4,6.7361]
[1751715449667,6.7354,148.42,148.41,2.3221167]
[1751715449867,11.27245625,148.42,148.41,2.3221167]
[1751715450264,16.8563615,148.42,148.41,2.3221167]
[1751715453769,16.85525655,148.42,148.41,2.3221167]
[1751715458873,23.74866108,148.42,148.41,2.3221167]
[1751715459767,17.01364885,148.42,148.41,2.3221167]
[1751715460470,17.01364885,148.42,148.4,6.7363]
[1751715460676,4.5359513,148.41,148.4,6.7363]
[1751715461069,4.5359513,148.41,148.4,9.0584167]
[1751715465676,4.5360711,148.41,148.4,9.0584167]
[1751715470276,10.10684467,148.41,148.4,9.0584167]
[1751715471086,5.57077357,148.41,148.4,9.0584167]
[1751715471386,10.10769052,148.41,148.4,9.0584167]
[1751715471783,10.09595801,148.41,148.4,9.0584167]
[1751715474192,10.09642375,148.41,148.4,9.0584167]
[1751715474992,10.09654383,148.41,148.4,9.0584167]
[1751715478001,10.09722671,148.41,148.4,9.0584167]
[1751715479497,5.57077357,148.41,148.4,9.0584167]
[1751715485699,5.57077357,148.41,148.4,9.05863737]
[1751715489594,6.2999469,148.47,148.38,45.52]
[1751715489796,6.2999469,148.45,148.38,45.52]
[1751715490097,6.735,148.43,148.41,2.32233737]
[1751715490399,4.52657399,148.42,148.41,2.32233737]
[1751715493198,11.26237399,148.42,148.39,6.7365]
[1751715493402,4.52746982,148.41,148.4,2.32233737]
[1751715493603,4.52746982,148.41,148.4,2.32310986]
[1751715493800,11.26356982,148.41,148.4,2.32310986]
[1751715494504,6.7361,148.41,148.4,2.32310986]
[1751715494802,11.26363482,148.41,148.4,2.32310986]
[1751715495002,4.52753482,148.41,148.38,52.2571]
[1751715495304,10.9912469,148.43,148.4,2.32310986]
[1751715495604,6.7361,148.41,148.4,2.32310986]
[1751715495806,11.2638161,148.41,148.4,2.32310986]
[1751715496707,13.49557228,148.41,148.4,2.32310986]
[1751715498602,13.49557228,148.41,148.38,52.2571]
[1751715498805,6.7361,148.41,148.4,2.32310986]
[1751715499005,13.4820414,148.41,148.4,2.32310986]
[1751715499300,6.7361,148.41,148.4,2.32310986]
[1751715499508,18.1565119,148.41,148.4,2.32310986]
[1751715500009,13.48199626,148.41,148.4,2.32310986]
[1751715500306,18.14429888,148.41,148.4,2.32310986]
[1751715501508,23.6799426,148.41,148.4,2.32310986]
[1751715503409,19.01763998,148.41,148.4,2.32310986]
[1751715503610,23.68019509,148.41,148.4,2.32310986]
[1751715505005,19.01763998,148.41,148.4,2.32310986]
[1751715506610,19.01357207,148.41,148.4,2.32310986]
[1751715506912,12.27747207,148.41,148.4,2.32310986]
[1751715507215,10.0532204,148.41,148.4,2.32310986]
[1751715514419,4.51757668,148.41,148.4,2.32310986]
[1751715514715,10.04557608,148.41,148.4,2.32310986]
[1751715520223,10.05192257,148.41,148.4,2.32310986]
[1751715524520,5.53434589,148.41,148.4,2.32310986]
[1751715527022,12.27034589,148.41,148.39,6.7364]
[1751715527216,6.736,148.41,148.4,2.32310986]
[1751715527522,12.27197046,148.41,148.4,2.32310986]
[1751715532323,12.27197046,148.41,148.39,6.7364]
[1751715532526,6.736,148.41,148.4,2.32310986]
[1751715532721,12.27235148,148.41,148.4,2.32310986]
[1751715534528,6.736,148.41,148.4,2.32310986]
[1751715534723,12.27251453,148.41,148.4,2.32310986]
[1751715535628,6.736,148.41,148.4,2.32310986]
[1751715535932,12.27261229,148.41,148.4,2.32310986]
[1751715542932,5.53661229,148.41,148.4,9.05940986]
[1751715545732,5.53661229,148.41,148.4,6.7363]
[1751715546032,5.53661229,148.41,148.4,9.05940986]
[1751715561153,10.07391766,148.41,148.4,9.05940986]
[1751715561751,5.53661229,148.41,148.4,9.05940986]
[1751715562250,10.07098062,148.41,148.4,9.05940986]
[1751715563752,5.53661229,148.41,148.4,9.05940986]
[1751715563953,10.07112564,148.41,148.4,9.05940986]
[1751715568455,10.07026186,148.41,148.4,9.05940986]
[1751715575258,13.04496907,148.44,148.41,6.7357]
[1751715575454,6.7347,148.44,148.43,2.32310986]
[1751715575654,13.60668866,148.44,148.43,2.32310986]
[1751715583062,6.87198866,148.44,148.43,9.05810986]
[1751715583263,6.31026907,148.46,148.43,2.32310986]
[1751715583555,63.70808318,148.47,148.45,2.32310986]
[1751715583761,70.44148318,148.47,148.46,2.32310986]
[1751715583959,77.30840972,148.47,148.46,2.32310986]
[1751715584159,70.99814065,148.47,148.46,2.32310986]
[1751715585465,6.86692654,148.47,148.46,2.32310986]
[1751715585865,6.7327,148.48,148.46,9.05670986]
[1751715586063,6.86149671,148.47,148.42,45.52]
[1751715586261,6.7327,148.48,148.42,45.52]
[1751715586467,2.20864991,148.47,148.42,45.52]
[1751715586655,6.7324,148.49,148.42,45.52]
[1751715586858,6.8591261,148.48,148.42,45.52]
[1751715587165,6.7324,148.49,148.47,2.32310986]
[1751715587365,12.13557461,148.48,148.42,45.52]
[1751715587565,5.45519977,148.47,148.42,45.52]
[1751715587865,6.7327,148.48,148.45,6.7336]
[1751715588058,5.45519776,148.47,148.42,45.52]
[1751715588261,6.7327,148.48,148.42,45.52]
[1751715588557,5.45318114,148.47,148.42,45.52]
[1751715588761,6.7327,148.48,148.46,2.32310986]
[1751715588959,6.7327,148.48,148.47,2.32310986]
[1751715589160,16.69853562,148.48,148.47,2.32310986]
[1751715589365,9.96583562,148.48,148.47,2.32310986]
[1751715592267,5.45318114,148.48,148.47,2.32310986]
[1751715596172,6.7327,148.48,148.47,2.32310986]
[1751715599074,6.7325,148.49,148.47,2.32310986]
[1751715599281,6.7325,148.49,148.48,2.32310986]
[1751715599477,12.19830469,148.49,148.48,2.32310986]
[1751715600577,12.19830469,148.49,148.46,6.7335]
[1751715600778,2.32122907,148.47,148.27,2.32122907]
[1751715600968,6.28761305,148.38,148.26,2.4018]
[1751715601175,7.78703376,148.37,148.3,2.32122907]
[1751715601371,5.46580469,148.36,148.32,2.32122907]
[1751715601576,5.46580469,148.35,148.32,49.18122907]
[1751715601775,5.46580469,148.34,148.32,2.32122907]
[1751715602077,6.88034191,148.4,148.32,2.32122907]
[1751715602280,2.32122907,148.38,148.32,2.32122907]
[1751715602579,16.96277445,148.37,148.33,46.88]
[1751715602784,6.7391,148.34,148.33,46.88]
[1751715603082,12.34402621,148.34,148.33,46.88]
[1751715603278,17.13599459,148.34,148.33,46.88]
[1751715603478,10.39689459,148.34,148.33,46.88]
[1751715604377,4.79196838,148.34,148.33,46.88]
[1751715608882,5.54120146,148.34,148.33,46.88]
[1751715609078,5.54120146,148.34,148.33,49.20122907]
[1751715611784,5.55673735,148.34,148.33,46.88]
[1751715613278,5.55673735,148.34,148.33,49.20122907]
[1751715614385,6.7387,148.35,148.33,49.20122907]
[1751715622291,5.63161487,148.34,148.33,49.20122907]
[1751715623594,12.37061487,148.34,148.33,49.20122907]
[1751715624592,12.37061487,148.34,148.33,46.88]
[1751715624787,5.63161487,148.34,148.33,49.20122907]
[1751715629092,2.32414496,148.4,148.33,49.20414496]
[1751715629397,2.32488474,148.38,148.33,46.88]
[1751715629694,6.739,148.34,148.33,46.88]
[1751715634297,8.13968999,148.34,148.22,582.06]
[1751715634498,2.32552577,148.29,148.26,2.32552577]
[1751715634798,2.32552577,148.3,148.26,2.32552577]
[1751715634996,6.7414,148.29,148.26,2.32552577]
[1751715635400,6.7414,148.29,148.27,2.32552577]
[1751715637798,6.7414,148.29,148.26,6.7426]
[1751715639594,6.7418,148.28,148.25,199.43573301]
[1751715640198,3.63573301,148.33,148.25,199.43573301]
[1751715640401,13.7471062,148.32,148.27,3.63573301]
[1751715640598,15.43194409,148.31,148.28,53.3616]
[1751715640800,6.7407,148.31,148.28,56.99733301]
[1751715641297,5.31140241,148.3,148.28,56.99733301]
[1751715641500,12.11214606,148.36,148.28,50.25573301]
[1751715641501,2.1888,148.36,148.28,50.25573301]
[1751715641701,14.00808266,148.35,148.3,3.63573301]
[1751715642002,14.95131682,148.34,148.32,3.63573301]
[1751715642207,5.31438266,148.33,148.32,3.63573301]
[1751715643092,11.1225056,148.33,148.31,6.7402]
[1751715643299,6.7393,148.34,148.31,6.7402]
[1751715643300,5.31438266,148.32,148.31,6.7402]
[1751715644102,11.12786399,148.32,148.31,6.7402]
[1751715644302,14.03847153,148.32,148.31,6.7402]
[1751715644499,8.22499071,148.32,148.31,6.7402]
[1751715645706,8.22499071,148.32,148.31,10.37593301]
[1751715646402,5.31438266,148.32,148.31,10.37593301]
[1751715646701,8.22731741,148.32,148.31,10.37593301]
[1751715647606,8.26661316,148.32,148.31,10.37593301]
[1751715649107,8.26661316,148.32,148.31,6.7402]
[1751715649302,5.35367841,148.32,148.31,6.7402]
[1751715653610,6.7388,148.35,148.32,6.7398]
[1751715653809,14.12956459,148.34,148.33,46.62]
[1751715654007,5.36202316,148.34,148.33,46.62]
[1751715654508,8.28172416,148.34,148.33,46.62]
[1751715654715,5.36202316,148.34,148.33,46.62]
[1751715655210,8.28181502,148.34,148.33,46.62]
[1751715655512,5.36202316,148.34,148.33,46.62]
[1751715656210,8.28172558,148.34,148.33,46.62]
[1751715656413,5.36202111,148.34,148.33,46.62]
[1751715656614,8.28541036,148.34,148.33,46.62]
[1751715659315,2.92338925,148.34,148.33,46.62]
[1751715659616,2.92338925,148.34,148.33,55.68454492]
[1751715659816,2.92338925,148.34,148.33,55.68386625]
[1751715660219,6.7379,148.37,148.34,6.7389]
[1751715660414,8.77286751,148.36,148.35,2.32436625]
[1751715661818,8.77286751,148.36,148.34,202.1589]
[1751715662024,6.7379,148.37,148.34,202.1589]
[1751715662319,8.77204521,148.36,148.34,202.1589]
[1751715662616,5.37149493,148.35,148.34,202.1589]
[1751715663017,5.37149493,148.35,148.34,195.42]
[1751715663219,8.29456382,148.35,148.34,195.42]
[1751715664222,14.14301548,148.35,148.34,195.42]
[1751715665221,8.29456382,148.35,148.34,195.42]
[1751715665423,14.14317651,148.35,148.34,195.42]
[1751715666222,14.15490294,148.35,148.34,195.42]
[1751715666422,20.89350294,148.35,148.34,195.42]
[1751715668019,17.96927978,148.35,148.34,195.42]
[1751715668223,20.89415705,148.35,148.34,195.42]
[1751715671127,20.88870609,148.35,148.34,195.42]
[1751715672531,14.15010609,148.35,148.31,2.4047]
[1751715672729,14.15010609,148.34,148.32,195.2]
[1751715672929,14.15010609,148.33,148.32,195.26]
[1751715673227,8.30694436,148.33,148.32,195.26]
[1751715673626,14.15092511,148.33,148.32,195.26]
[1751715673831,8.76885802,148.33,148.32,195.26]
[1751715674024,20.88068769,148.33,148.32,195.26]
[1751715677028,20.88101067,148.33,148.32,195.26]
[1751715677529,20.88101067,148.33,148.31,46.44]
[1751715677733,6.7399,148.33,148.32,195.16]
[1751715677931,20.88151792,148.33,148.32,195.16]
[1751715678231,17.95755534,148.33,148.32,195.16]
[1751715678430,20.88151742,148.33,148.32,195.16]
[1751715678931,20.88151742,148.33,148.31,46.44]
[1751715679127,6.7399,148.33,148.32,195.16]
[1751715679328,20.86989864,148.33,148.32,195.16]
[1751715679729,20.86989773,148.33,148.32,195.16]
[1751715681433,20.87157569,148.33,148.32,195.16]
[1751715684232,15.50844026,148.33,148.32,195.16]
[1751715684431,20.86002233,148.33,148.32,195.16]
[1751715685440,25.98956727,148.33,148.32,195.16]
[1751715687328,20.86002233,148.33,148.32,195.16]
[1751715687536,25.990548,148.33,148.32,195.16]
[1751715687734,25.990548,148.33,148.32,197.48549039]
[1751715690339,26.01449347,148.33,148.32,197.48549039]
[1751715693138,26.01449347,148.33,148.32,195.16]
[1751715693337,26.00488618,148.33,148.32,197.48549039]
[1751715695039,14.12012233,148.33,148.32,197.48549039]
[1751715696328,14.11112877,148.33,148.32,197.48549039]
[1751715696633,14.11112877,148.33,148.32,204.22539039]
[1751715699739,14.11112877,148.33,148.32,203.82539039]
[1751715704641,13.02521861,148.37,148.34,6.7387]
[1751715704941,13.45921618,148.36,148.35,196.92549039]
[1751715708238,8.30301305,148.36,148.35,203.66409039]
[1751715710943,6.737,148.39,148.36,6.7381]
[1751715711242,11.92765084,148.38,148.36,52.9781]
[1751715711438,6.7372,148.38,148.37,2.32549039]
[1751715711639,11.92668778,148.38,148.37,2.32549039]
[1751715713644,6.7377,148.37,148.36,46.24]
[1751715713838,11.92718778,148.37,148.36,48.56549039]
[1751715716648,17.7607812,148.37,148.36,48.56549039]
[1751715716841,25.90139857,148.37,148.36,48.56549039]
[1751715717745,25.90139857,148.37,148.36,46.24]
[1751715718141,23.06059063,148.37,148.36,46.24]
[1751715718445,23.06059063,148.37,148.36,240.74]
[1751715720150,17.75754062,148.37,148.36,240.74]
[1751715721546,17.75754062,148.37,148.36,243.06549039]
[1751715721754,13.86548254,148.37,148.36,243.06549039]
[1751715721953,8.67923534,148.37,148.36,243.06549039]
[1751715722251,13.81974425,148.37,148.36,243.06549039]
[1751715724450,13.81974425,148.37,148.36,249.80359039]
[1751715724649,10.97410233,148.37,148.36,249.80359039]
[1751715725151,5.14050891,148.37,148.36,249.80359039]
[1751715725340,10.96510413,148.37,148.36,249.80359039]
[1751715725541,13.79972503,148.37,148.36,249.80359039]
[1751715726454,13.79951984,148.37,148.36,249.80359039]
[1751715737463,13.8019114,148.37,148.36,249.80359039]
[1751715739765,13.8019114,148.37,148.36,243.06549039]
[1751715740564,13.79743419,148.37,148.36,243.06549039]
[1751715743468,13.79743419,148.37,148.36,249.80359039]
[1751715744770,13.79961711,148.37,148.36,249.80359039]
[1751715746971,13.79961711,148.37,148.36,247.4781]
[1751715747273,18.99429161,148.37,148.36,243.06549039]
[1751715747670,18.99532909,148.37,148.36,243.06549039]
[1751715750685,18.99913344,148.37,148.36,243.06549039]
[1751715754786,18.99913344,148.37,148.36,249.80359039]
[1751715754986,13.80197175,148.37,148.36,249.80359039]
[1751715755986,18.9940196,148.37,148.36,249.80359039]
[1751715756378,18.9940196,148.37,148.36,249.80195394]
[1751715760889,18.99355433,148.37,148.36,249.80195394]
[1751715762292,18.98465451,148.37,148.36,249.80195394]
[1751715765190,11.01196067,148.37,148.36,249.80195394]
[1751715765389,18.97528618,148.37,148.36,249.80195394]
[1751715765994,18.97528618,148.37,148.36,243.06385394]
[1751715766389,25.71298618,148.37,148.36,46.24]
[1751715766594,25.71298618,148.37,148.36,240.02]
[1751715767491,32.01122699,148.37,148.36,240.02]
[1751715771001,32.01122699,148.37,148.36,46.24]
[1751715771197,31.98332337,148.37,148.36,239.98]
[1751715774506,25.68508256,148.37,148.36,239.98]
[1751715781408,25.68508256,148.37,148.36,46.24]
[1751715781605,25.68508256,148.37,148.36,239.92]
[1751715783212,12.55761282,148.37,148.36,239.92]
[1751715783509,25.62853528,148.37,148.36,239.92]
[1751715784907,25.62835988,148.37,148.36,239.92]
[1751715786413,6.7395,148.33,148.32,48.16452065]
[1751715786605,25.63046054,148.33,148.32,241.84452065]
[1751715786806,25.63046054,148.33,148.32,2.32452065]
[1751715787007,6.74,148.32,148.31,239.52]
[1751715787210,25.63096054,148.32,148.31,239.56]
[1751715787809,25.63096054,148.32,148.31,239.62]
[1751715788113,6.7416,148.29,148.28,2.32452065]
[1751715788415,20.46835743,148.29,148.27,48.16452065]
[1751715788616,6.7416,148.29,148.28,196.10452065]
[1751715788806,20.42347623,148.29,148.28,193.78]
[1751715790206,20.42347623,148.29,148.28,196.10452065]
[1751715791321,11.79260701,148.29,148.28,196.10452065]
[1751715791517,20.3710426,148.29,148.28,2.32452065]
[1751715791717,20.3710426,148.29,148.28,196.08452065]
[1751715792518,11.79260701,148.29,148.28,196.08452065]
[1751715792912,11.79260701,148.29,148.28,2.32452065]
[1751715793213,11.79260701,148.29,148.28,196.08452065]
[1751715793818,11.79260701,148.29,148.28,196.06452065]
[1751715794220,6.7416,148.29,148.28,196.06452065]
[1751715795616,6.7411,148.3,148.28,196.06452065]
[1751715795817,2.32452065,148.34,148.29,2.32452065]
[1751715796021,2.32452065,148.34,148.27,52.5821]
[1751715796022,13.59643532,148.33,148.3,196.08452065]
[1751715796323,6.7407,148.31,148.3,196.08452065]
[1751715796522,11.73746804,148.31,148.3,193.76]
[1751715796718,11.73746804,148.31,148.3,196.08452065]
[1751715799624,11.73746804,148.31,148.3,193.76]
[1751715799826,11.72635192,148.31,148.3,193.76]
[1751715801925,11.72635192,148.31,148.29,2.32452065]
[1751715802122,6.7407,148.31,148.29,2.32452065]
[1751715804726,5.02087488,148.3,148.29,2.32452065]
[1751715805431,6.7407,148.31,148.29,2.32452065]
[1751715806529,5.02155922,148.3,148.29,2.32452065]
[1751715807729,6.7407,148.31,148.29,2.32452065]
[1751715808126,11.76298986,148.3,148.28,193.76]
[1751715808322,11.76298986,148.3,148.29,2.32452065]
[1751715808627,11.76349241,148.3,148.29,2.32452065]
[1751715808829,6.741,148.3,148.29,2.32452065]
[1751715809928,6.7406,148.31,148.29,2.32452065]
[1751715811528,5.02457213,148.3,148.29,2.32452065]
[1751715811921,5.02461652,148.3,148.29,2.32452065]
[1751715813131,10.83287311,148.3,148.29,2.32452065]
[1751715813534,17.57387311,148.3,148.28,193.76]
[1751715813830,6.741,148.3,148.29,2.32452065]
[1751715814029,17.57447265,148.3,148.29,2.32452065]
[1751715814831,11.76621606,148.3,148.29,2.32452065]
[1751715815130,17.5750923,148.3,148.29,2.32452065]
[1751715816330,20.42393762,148.3,148.29,2.32452065]
[1751715828133,20.42393762,148.3,148.28,196.08452065]
[1751715828332,20.42423762,148.29,148.28,193.76]
[1751715828634,25.52714736,148.29,148.27,48.16452065]
[1751715828834,20.42473762,148.28,148.27,241.90452065]
[1751715829632,20.42473762,148.28,148.27,48.16452065]
[1751715829834,13.68293762,148.28,148.27,241.90452065]
[1751715830032,6.29824081,148.33,148.27,241.90452065]
[1751715830238,6.29824081,148.33,148.29,2.32452065]
[1751715830239,11.40248287,148.32,148.29,2.32452065]
[1751715830438,6.7413,148.3,148.29,2.32452065]
[1751715830635,11.84554206,148.3,148.29,2.32452065]
[1751715831839,11.84554206,148.3,148.28,2.32452065]
[1751715832035,6.7413,148.3,148.28,2.32452065]
[1751715833537,6.7413,148.3,148.29,2.32452065]
[1751715833738,11.85345429,148.3,148.29,2.32452065]
[1751715833934,5.11215429,148.3,148.29,2.32452065]
[1751715834141,6.29824081,148.33,148.29,2.32452065]
[1751715834339,6.29824081,148.33,148.32,2.32452065]
[1751715834536,11.40947004,148.33,148.32,196.06452065]
[1751715834837,11.40947004,148.33,148.32,239.6]
[1751715835038,11.40947004,148.33,148.32,248.66452065]
[1751715835239,6.29824081,148.34,148.32,248.66452065]
[1751715835434,6.29824081,148.34,148.33,2.32452065]
[1751715835939,13.03714081,148.35,148.33,2.32452065]
[1751715836239,6.7389,148.35,148.34,2.32452065]
[1751715836441,11.84421284,148.35,148.34,2.32452065]
[1751715836943,11.84421284,148.35,148.32,246.34]
[1751715837133,6.7389,148.35,148.34,2.32452065]
[1751715837335,11.84248404,148.35,148.34,2.32452065]
[1751715838038,6.7392,148.34,148.33,2.32452065]
[1751715838640,6.7392,148.34,148.32,241.92452065]
[1751715842042,13.57902108,148.33,148.32,241.92452065]
[1751715849347,13.56603653,148.33,148.32,241.92452065]
[1751715850649,10.77732095,148.33,148.32,248.66452065]
[1751715856747,10.77732095,148.33,148.32,241.92452065]
[1751715857642,13.54593741,148.33,148.32,241.92452065]
[1751715858349,13.5551312,148.33,148.32,241.92452065]
[1751715859648,13.5551312,148.33,148.32,239.6]
[1751715861150,13.55554638,148.33,148.32,45.86]
[1751715861350,13.55554638,148.33,148.32,239.54]
[1751715863245,13.55554638,148.33,148.32,241.86452065]
[1751715864354,20.29504638,148.33,148.32,241.86452065]
[1751715865255,12.54846942,148.33,148.32,241.86452065]
[1751715865456,20.30192182,148.33,148.32,241.86452065]
[1751715866360,6.74,148.32,148.29,52.5811]
[1751715866558,6.74,148.32,148.3,2.32452065]
[1751715866859,6.74,148.32,148.31,193.68]
[1751715867055,17.54306402,148.32,148.31,193.68]
[1751715869363,20.31358912,148.32,148.31,193.68]
[1751715870860,6.7405,148.31,148.29,48.16452065]
[1751715871057,6.7405,148.31,148.3,193.68]
[1751715871256,14.48629922,148.31,148.3,193.68]
[1751715871762,14.48651295,148.31,148.3,193.68]
[1751715872265,20.31033088,148.31,148.3,193.68]
[1751715872564,6.7409,148.3,148.29,45.84]
[1751715872755,19.60134022,148.3,148.29,45.84]
[1751715872955,19.60134022,148.3,148.29,239.54]
[1751715873153,19.60134422,148.3,148.29,239.54]
[1751715873663,25.42675814,148.3,148.29,239.54]
[1751715874069,25.42675814,148.3,148.29,45.84]
[1751715874265,25.42675814,148.3,148.29,239.54]
[1751715875966,25.42675814,148.3,148.29,45.84]
[1751715876164,25.42675814,148.3,148.29,241.86452065]
[1751715879268,25.42675814,148.3,148.29,48.16452065]
[1751715879470,25.42675814,148.3,148.29,241.86452065]
[1751715882273,20.31232687,148.3,148.29,241.86452065]
[1751715885880,20.31232687,148.3,148.29,193.7]
[1751715887781,6.7414,148.29,148.26,6.7426]
[1751715888079,8.56159079,148.28,148.27,193.7]
[1751715888270,5.80196239,148.28,148.27,196.02452065]
[1751715889073,5.80196239,148.28,148.27,2.32452065]
[1751715889272,5.80196239,148.28,148.27,196.02452065]
[1751715892282,6.7414,148.29,148.27,196.02452065]
[1751715892482,6.7414,148.29,148.28,2.32452065]
[1751715892785,20.25461331,148.29,148.28,2.32452065]
[1751715893578,20.2542323,148.29,148.28,2.32452065]
[1751715895784,13.5128323,148.29,148.28,2.32452065]
[1751715896184,13.5128323,148.29,148.27,200.4422]
[1751715896387,6.7412,148.3,148.28,2.32452065]
[1751715896585,13.4946716,148.29,148.27,200.4422]
[1751715896885,6.7412,148.3,148.28,2.32452065]
[1751715897185,6.7412,148.3,148.29,2.32452065]
[1751715897484,20.23657984,148.3,148.29,2.32452065]
[1751715899188,25.33244194,148.3,148.29,2.32452065]
[1751715901591,18.59124194,148.3,148.29,2.32452065]
[1751715902286,13.49537984,148.3,148.29,9.06582065]
[1751715903185,13.49537984,148.3,148.29,2.32452065]
[1751715904787,20.23627984,148.3,148.29,2.32452065]
[1751715905590,13.49537984,148.3,148.29,2.32452065]
[1751715905792,13.49537984,148.3,148.29,9.06582065]
[1751715907192,6.7402,148.32,148.29,9.06582065]
[1751715907388,6.7402,148.32,148.31,2.32452065]
[1751715907589,25.39579647,148.32,148.31,2.32452065]
[1751715910592,18.68292124,148.32,148.31,2.32452065]
[1751715912897,18.69167884,148.32,148.31,2.32452065]
[1751715913398,25.43157884,148.32,148.31,2.32452065]
[1751715913698,25.44625528,148.32,148.31,2.32452065]
[1751715916500,25.44625528,148.32,148.3,2.32452065]
[1751715916702,18.70635528,148.31,148.3,2.32452065]
[1751715919704,25.44675528,148.31,148.3,2.32452065]
[1751715925613,25.42809533,148.31,148.3,2.32452065]
[1751715927109,18.68769533,148.31,148.3,2.32452065]
[1751715928309,10.95112729,148.31,148.3,2.32452065]
[1751715928609,18.68824414,148.31,148.3,2.32452065]
[1751715930709,18.68824414,148.31,148.29,6.7412]
[1751715930910,13.55333318,148.3,148.29,6.7412]
[1751715931406,13.55362104,148.3,148.29,9.0670887]
[1751715941219,13.55362104,148.3,148.29,9.06694817]
[1751715943317,18.69547861,148.3,148.29,9.06694817]
[1751715952124,18.70557216,148.3,148.29,9.06694817]
[1751715956718,18.70557216,148.3,148.29,6.7412]
[1751715956917,18.70557216,148.3,148.29,9.06694817]
[1751715959320,18.70557216,148.3,148.29,6.7412]
[1751715959518,18.70557216,148.3,148.29,9.06694817]
[1751715960726,18.71534273,148.3,148.29,9.06694817]
[1751715966030,18.71350171,148.3,148.29,9.06694817]
[1751715967542,6.30111008,148.33,148.31,6.7402]
[1751715967729,13.04041008,148.34,148.32,2.32574817]
[1751715968033,13.04041008,148.34,148.33,2.32574817]
[1751715968238,18.17974201,148.34,148.33,2.32574817]
[1751715970036,11.87863193,148.34,148.33,2.32574817]
[1751715979555,25.31213198,148.34,148.33,2.32574817]
[1751715980755,25.31176879,148.34,148.33,2.32574817]
[1751715981450,6.7396,148.33,148.31,2.32574817]
[1751715981653,4.91650639,148.32,148.31,2.32574817]
[1751715982355,20.16570828,148.32,148.3,195.82574817]
[1751715982655,6.7399,148.32,148.3,195.82574817]